[Event "New York Spring GM-A 2022"]
[Site "New York"]
[Date "2022.04.16"]
[Round "3.2"]
[White "Song, Edward"]
[Black "Barbosa, Oliver"]
[Result "1/2-1/2"]
[ECO "D16"]
[WhiteElo "2383"]
[BlackElo "2505"]
[Annotator "TA"]
[PlyCount "118"]
[EventDate "2022.04.14"]
[EventType "tourn"]
[EventCountry "USA"]
[SourceTitle "playchess.com"]
[Source "ChessBase"]
[SourceQuality "1"]
[TimeControl "5400+30"]

{[%evp 16,118,25,10,10,0,11,0,3,0,36,32,47,49,25,39,22,16,37,0,50,34,46,14,52,50,53,0,0,4,0,0,0,0,0,0,0,0,0,0,0,0,0,0,0,0,0,0,0,0,27,27,90,0,0,0,0,0,0,0,0,0,0,0,0,0,0,0,0,0,0,0,0,0,0,0,10,0,0,0,0,0,0,0,0,0,0,0,0,0,0,0,0,0,0,0,0,0,0,0,0,0,0,0,0]} 1. d4 {[%emt 0:00:05]} d5 {[%emt 0:00:14]} 2. c4 {[%emt 0:00:09]} c6 {[%emt 0:00:58]} 3. Nf3 {[%emt 0:00:09]} Nf6 {[%emt 0:00:16]} 4. Nc3 {[%emt 0:00:21]} dxc4 {[%emt 0:00:15]} 5. a4 {[%emt 0:00:09]} e6 {[%emt 0:01:55]} 6. e3 {[%emt 0:00:37]} c5 {[%emt 0:00:09]} 7. Bxc4 {[%emt 0:00:16]} Nc6 {[%emt 0:00:06] 7...cxd4 is the modern continuation.} 8. O-O {[%emt 0:00:29]} cxd4 {[%emt 0:01:48]} 9. exd4 {[%emt 0:00:20]} Be7 {[%emt 0:00:09] D16: Slav Defence: 5 a4: Lines with 5...Bg4 and 5...Na6.} 10. Qe2 {[%emt 0:00:22]} O-O {[%emt 0:00:12]} ({But not} 10... Nxd4 11. Nxd4 Qxd4 12. Nb5 $16) 11. Rd1 {[%emt 0:00:09]} Nb4 {[%emt 0:00:06] Against d5} 12. Bg5 {[%emt 0:00:33]} Nfd5 {[%emt 0:12:37]} 13. Nxd5 {[%emt 0:01:31]} Nxd5 {[%emt 0:00:24]} 14. Bxd5 {[%emt 0:00:22] [#] Threatens to win with Bxe7.} Bxg5 {[%emt 0:00:16]} 15. Be4 {[%emt 0:00:08]} Bf6 {[%emt 0:03:16]} 16. Ne5 {[%emt 0:06:00]} a5 {[%emt 0:09:51] [#]} 17. Bd3 $146 {[%emt 0:12:49]} ({Predecessor:} 17. Ra3 g6 18. h4 Bxh4 19. d5 Qd6 20. Bf3 Bf6 21. Ng4 Bg7 22. dxe6 Qxe6 23. Ne3 Qe5 24. Rb3 Be6 25. Rb5 Qf4 26. Bxb7 Rab8 27. b3 Qc7 {½-½ (27) Ovod,E (2290)-Dokutchaev,A (2443) Novgorod 1999}) 17... g6 {[%emt 0:05:04]} (17... Bd7 $11) 18. Bb5 {[%emt 0:18:27]} Qe7 {[%emt 0:04:31]} 19. Rac1 {[%emt 0:06:56]} Rd8 {[%emt 0:02:35]} 20. Qf3 {[%emt 0:12:49]} Rd5 {[%emt 0:02:06]} 21. g3 {[%emt 0:08:31]} (21. Rd3 $14) 21... Bxe5 $11 {[%emt 0:13:59]} 22. dxe5 {[%emt 0:00:06]} Rxe5 {[%emt 0:00:18]} 23. Bf1 {[%emt 0:22:59] Strongly threatening Bh3.} Rd5 $1 {[%emt 0:08:35]} 24. Rxd5 {[%emt 0:00:17]} exd5 {[%emt 0:00:02]} 25. Qxd5 {[%emt 0:00:07]} Be6 {[%emt 0:02:03]} 26. Qb5 {[%emt 0:00:18]} Qd6 {[%emt 0:01:59]} 27. h4 {[%emt 0:03:03]} h5 {[%emt 0:04:20]} 28. Qxb7 {[%emt 0:05:43]} Rb8 {[%emt 0:01:30][%cal Ba8b8,Bb8b2,Bb2a2,Ba2a4][%mdl 32]} 29. Qa7 {[%emt 0:00:16]} Rxb2 {[%emt 0:01:44]} 30. Qxa5 {[%emt 0:00:14]} Ra2 {[%emt 0:16:48]} 31. Qa7 {[%emt 0:01:12]} Qd2 {[%emt 0:01:03]} 32. Rb1 {[%emt 0:00:26]} Kg7 {[%emt 0:01:25]} 33. Qc5 {[%emt 0:00:22][%cal Ob1a1]} Kh7 {[%emt 0:00:46] [#]} (33... Kh6 $11 {keeps the balance.}) 34. Bg2 {[%emt 0:00:44]} (34. Rb8 $1 $16) 34... Rxa4 {[%emt 0:00:35] The position is equal.} 35. Qe5 {[%emt 0:00:25] Rb8 is the strong threat.} Ra5 {[%emt 0:01:53]} 36. Qe1 {[%emt 0:00:31]} Qa2 {[%emt 0:02:37]} 37. Rb2 {[%emt 0:00:29]} Qa1 {[%emt 0:01:01]} 38. Qxa1 {[%emt 0:00:12]} Rxa1+ {[%emt 0:00:02][%mdl 4096] Endgame KRB-KRB} 39. Kh2 {[%emt 0:00:04]} Kg7 {[%emt 0:00:21]} 40. Bf3 {[%emt 0:00:22]} Kf6 {[%emt 0:00:19]} 41. Kg2 {[%emt 0:00:10]} Rc1 {[%emt 0:00:39]} 42. Rd2 {[%emt 0:00:19]} Ke5 {[%emt 0:00:51]} 43. Re2+ {[%emt 0:00:16]} Kd6 {[%emt 0:00:18]} 44. Rd2+ {[%emt 0:00:06]} Kc5 {[%emt 0:00:05]} 45. Be4 {[%emt 0:00:23]} Re1 {[%emt 0:00:13]} 46. Bf3 {[%emt 0:00:23]} Bc4 {[%emt 0:01:25]} 47. Rd1 {[%emt 0:00:11]} Rxd1 {[%emt 0:01:48]} 48. Bxd1 {[%emt 0:00:02] KB-KB} Kd4 {[%emt 0:00:08]} 49. Kg1 {[%emt 0:00:06]} Bd5 {[%emt 0:00:49]} 50. Be2 {[%emt 0:00:11]} Kc3 {[%emt 0:00:25]} 51. Bb5 $1 {[%emt 0:00:09]} Kd2 {[%emt 0:00:26]} 52. Be8 {[%emt 0:00:07]} Ke1 {[%emt 0:00:10]} 53. Bb5 {[%emt 0:00:08]} Kd2 {[%emt 0:00:45]} 54. Be8 {[%emt 0:00:05]} Kd3 {[%emt 0:00:05]} 55. Bb5+ {[%emt 0:00:05]} Ke4 {[%emt 0:00:06]} 56. Bf1 {[%emt 0:00:11]} Kd4 {[%emt 0:00:08]} 57. Bb5 {[%emt 0:00:05]} Ke4 {[%emt 0:00:05]} 58. Bf1 {[%emt 0:00:03]} Kd4 {[%emt 0:00:06]} 59. Bb5 {[%emt 0:00:04]} Ke4 {[%emt 0:03:20] Weighted Error Value: White=0.06 (flawless) /Black=0.06 (flawless)} 1/2-1/2

[Event "New York Spring GM-A 2022"]
[Site "New York"]
[Date "2022.04.16"]
[Round "3.3"]
[White "Ostrovskiy, Aleksandr"]
[Black "Kaliksteyn, Alexander"]
[Result "1-0"]
[ECO "B48"]
[WhiteElo "2409"]
[BlackElo "2379"]
[Annotator "TA"]
[PlyCount "47"]
[EventDate "2022.04.14"]
[EventType "tourn"]
[EventCountry "USA"]
[SourceTitle "playchess.com"]
[Source "ChessBase"]
[SourceQuality "1"]
[TimeControl "5400+30"]

{[%evp 14,47,27,25,36,21,35,27,53,52,61,21,31,9,30,12,54,34,37,28,37,32,35,18,17,2,11,0,9,0,0,0,111,113,1216,1182]} 1. e4 {[%emt 0:01:28]} c5 {[%emt 0:00:07]} 2. Nf3 {[%emt 0:00:05]} e6 {[%emt 0:00:18]} 3. d4 {[%emt 0:00:05]} cxd4 {[%emt 0:00:06]} 4. Nxd4 {[%emt 0:00:03]} Nc6 {[%emt 0:00:08]} 5. Nc3 {[%emt 0:00:07]} Qc7 {[%emt 0:00:12]} 6. Be3 {[%emt 0:00:59]} a6 {[%emt 0:00:17]} 7. a3 {[%emt 0:00:44] 7.g4 gains popularity.} b5 {[%emt 0:05:40]} 8. Nxc6 {[%emt 0:00:26]} Qxc6 {[%emt 0:00:06] B48: Sicilian: Taimanov: 5 Nc3 Qc7 6 Be3 a6 without Be2.} 9. Bd3 {[%emt 0:00:32]} Bb7 {[%emt 0:00:55]} 10. Qd2 {[%emt 0:00:32]} Bc5 {[%emt 0:48:21] [#] White has an edge.} 11. O-O-O $146 {[%emt 0:10:46] Threatens to win with Bxc5.} ({Predecessor:} 11. Bxc5 Qxc5 12. b4 Qd4 13. Be2 Qxd2+ 14. Kxd2 Nf6 15. f3 d5 16. exd5 O-O-O 17. a4 Nxd5 18. Nxd5 Rxd5+ {½-½ (42) Berkes,F (2680)-Medvegy,Z (2527) Budapest 2021}) 11... Nf6 {[%emt 0:04:57]} 12. Rhe1 {[%emt 0:07:26] [#] Hoping for Bxc5.} d6 {[%emt 0:18:26]} 13. Bxc5 {[%emt 0:15:31]} Qxc5 {[%emt 0:00:18]} 14. f4 {[%emt 0:01:11] Black should prevent e5.} (14. Be2 {is interesting.} Ke7 15. f3 Rhd8 16. g4) 14... O-O-O {[%emt 0:03:06]} 15. Qe2 {[%emt 0:02:59]} Kb8 {[%emt 0:05:29]} 16. Kb1 {[%emt 0:05:09]} h5 {[%emt 0:04:13]} 17. g3 {[%emt 0:02:12]} Nd7 {[%emt 0:00:34]} 18. Rd2 {[%emt 0:02:48]} h4 {[%emt 0:00:56]} 19. Red1 {[%emt 0:02:21]} hxg3 {[%emt 0:00:07]} 20. hxg3 {[%emt 0:00:01]} g6 {[%emt 0:02:02]} 21. Bxb5 {[%emt 0:09:48]} axb5 {[%emt 0:00:32]} 22. Rxd6 {[%emt 0:00:03]} Kc8 {[%emt 0:02:30]} (22... Bc6 $11) 23. Nxb5 $16 {[%emt 0:12:20]} Nf6 $2 {[%emt 0:00:08][%mdl 8192] [#]} (23... Nb6 $16) 24. b4 {[%emt 0:02:06] Weighted Error Value: White=0.12 (very precise) /Black=0.20 (precise)} 1-0

[Event "New York Spring GM-A 2022"]
[Site "New York"]
[Date "2022.04.16"]
[Round "3.4"]
[White "Wang, Kevin"]
[Black "Guo, Arthur"]
[Result "0-1"]
[ECO "D38"]
[WhiteElo "2389"]
[BlackElo "2412"]
[Annotator "TA"]
[PlyCount "154"]
[EventDate "2022.04.14"]
[EventType "tourn"]
[EventCountry "USA"]
[SourceTitle "playchess.com"]
[Source "ChessBase"]
[SourceQuality "1"]
[TimeControl "5400+30"]

{[%evp 13,154,4,6,0,0,2,0,0,21,0,27,41,34,35,57,62,35,39,59,54,75,39,32,27,81,44,78,21,72,56,42,0,0,-25,-24,-41,-29,-23,189,167,192,160,257,207,280,161,472,453,524,523,447,163,166,146,247,0,0,-84,-53,-59,-34,-51,-7,-7,0,0,0,0,0,0,0,0,0,-48,-38,-62,-13,-13,-10,-65,-10,-11,-11,-22,-16,-16,-16,-46,-46,-46,-18,-61,-47,-55,-17,-14,-18,-29,-6,-6,0,-56,0,-25,0,-36,0,-31,0,0,0,0,0,0,0,0,0,-4,-6,-40,-46,-170,-172,-169,-173,-168,-157,-142,0,-337,-337,-413,-377,-1121,-1048,-1035,-1012,-1275,-1246,-1166,-1010,-895,-778]} 1. d4 {[%emt 0:00:03]} Nf6 {[%emt 0:00:18]} 2. c4 {[%emt 0:00:19]} e6 {[%emt 0:00:05]} 3. Nc3 {[%emt 0:00:32]} d5 {[%emt 0:00:11]} 4. Nf3 {[%emt 0:00:34]} Bb4 {[%emt 0:00:18]} 5. Qa4+ {[%emt 0:01:09]} Nc6 {[%emt 0:00:08]} 6. a3 {[%emt 0:00:53]} Bxc3+ {[%emt 0:00:37]} 7. bxc3 {[%emt 0:00:07]} Bd7 {[%emt 0:04:10][%cal Oc6d4]} 8. cxd5 {[%emt 0:01:06] 8.cxd5 scores better than 8.Qc2. D38: Queen's Gambit Declined: Ragozin Defence (4 Nf3 Bb4).} exd5 {[%emt 0:01:23]} 9. Qc2 {[%emt 0:00:34]} O-O {[%emt 0:02:12]} 10. Bg5 {[%emt 0:01:18] The position is equal.} h6 {[%emt 0:06:48]} 11. Bh4 {[%emt 0:01:18]} Qe7 {[%emt 0:10:20]} 12. e3 {[%emt 0:04:26]} Bg4 {[%emt 0:05:47] [#]} 13. Bd3 $146 {[%emt 0:06:14]} ({Predecessor:} 13. Be2 Nd8 14. O-O Re8 15. c4 c6 16. cxd5 cxd5 17. Rfc1 Rc8 18. Qa4 Rxc1+ 19. Rxc1 {1-0 (35) Kuhn,T (2260)-Gantner,M Winterthur 2003}) 13... Qe6 {[%emt 0:06:00]} 14. O-O {[%emt 0:06:09]} Bxf3 {[%emt 0:07:00]} 15. gxf3 {[%emt 0:00:23]} Ne7 {[%emt 0:00:18]} 16. c4 {[%emt 0:06:01]} Rac8 {[%emt 0:14:07]} 17. cxd5 {[%emt 0:17:32]} Nfxd5 {[%emt 0:00:28][%cal Oc7c5]} 18. Bg3 {[%emt 0:04:34]} c6 {[%emt 0:05:56]} (18... Qf6 $11 {keeps the balance.}) 19. Rab1 {[%emt 0:03:27]} b6 {[%emt 0:01:17]} 20. Rfe1 {[%emt 0:08:00]} (20. e4 $16 Nf6 21. Bc4) 20... Nf6 {[%emt 0:05:33]} (20... Qf6 $11) 21. e4 {[%emt 0:04:43]} Nh5 {[%emt 0:03:44]} 22. Rbd1 {[%emt 0:03:59]} Qf6 {[%emt 0:08:49][%csl LRd4,LRf3] Prevents f4.} 23. Be2 {[%emt 0:13:15]} Nf4 {[%emt 0:02:13]} 24. Bf1 {[%emt 0:00:59]} Ne6 {[%emt 0:02:29]} 25. Be5 {[%emt 0:01:52]} Qxf3 {[%emt 0:02:57]} (25... Qg5+ $11 {and Black is okay.} 26. Bg3 Rcd8) 26. Re3 $1 $18 {[%emt 0:00:31]} Qh5 {[%emt 0:10:22] [#]} 27. Rh3 $1 {[%emt 0:01:18][%mdl 1024] White has strong compensation.} Qg6+ {[%emt 0:00:00]} (27... Qg4+ $16 {keeps fighting.} 28. Rg3 Qh4) 28. Rg3 {[%emt 0:00:03]} Qh7 {[%emt 0:00:00]} 29. Bh3 {[%emt 0:01:17] This bishop pair is nice.} (29. f4 $142) 29... Ng6 $2 {[%emt 0:01:30] [#]} (29... g5 30. f4 Ng6) 30. Bf5 $1 {[%emt 0:00:23][%cal Og3g6]} Rfe8 {[%emt 0:00:00]} 31. Qb3 {[%emt 0:01:25]} Nef8 {[%emt 0:00:00]} 32. Bxc8 $2 {[%emt 0:04:47]} (32. Bd6) 32... Rxc8 {[%emt 0:00:00]} 33. Bd6 {[%emt 0:00:36]} Ne6 {[%emt 0:00:00]} (33... Rd8 $16 {might work better.}) 34. Qe3 $2 {[%emt 0:00:31]} (34. Qc2 $18) 34... Rd8 $11 {[%emt 0:00:00]} 35. e5 {[%emt 0:00:23]} (35. Bb4 $11 {remains equal.}) 35... Ngf4 {[%emt 0:00:00][%cal Oe6d4]} 36. Re1 {[%emt 0:00:51]} Qf5 {[%emt 0:00:08]} 37. Kh1 $1 {[%emt 0:02:03]} Rc8 {[%emt 0:01:39]} 38. Qe4 {[%emt 0:00:39]} Qh5 {[%emt 0:00:02]} 39. Qf3 {[%emt 0:01:00]} Qxf3+ {[%emt 0:01:22]} 40. Rxf3 {[%emt 0:00:01]} g5 {[%emt 0:00:05]} 41. Rd1 {[%emt 0:00:41]} Kg7 {[%emt 0:00:48]} 42. Rd2 {[%emt 0:00:37]} (42. a4 $5 {[%cal Rf3c3]}) 42... Nd5 {[%emt 0:00:25]} 43. Kg1 {[%emt 0:02:09]} (43. Rb3 $11) 43... Kg6 {[%emt 0:00:10]} 44. Kf1 {[%emt 0:00:06]} Nef4 {[%emt 0:00:18]} (44... h5 $15 {feels stronger.}) 45. Rc2 {[%emt 0:00:38]} Kf5 {[%emt 0:00:14]} 46. e6 {[%emt 0:00:48]} (46. Rb3 $11) 46... fxe6 {[%emt 0:00:27]} ({Better is} 46... Kxe6 $15 47. Bxf4 Nxf4) 47. Bxf4 {[%emt 0:00:11]} Nxf4 $15 {[%emt 0:00:04][%mdl 4096] Endgame KRR-KRN} 48. Re3 {[%emt 0:00:27]} Rd8 {[%emt 0:01:11]} 49. Re5+ {[%emt 0:00:35]} Kg4 {[%emt 0:00:30]} 50. Re4 {[%emt 0:00:11]} Rd6 $1 {[%emt 0:00:24]} 51. Rc3 {[%emt 0:00:24]} Kf5 {[%emt 0:00:47]} 52. f3 {[%emt 0:00:05]} h5 {[%emt 0:00:55]} 53. Kf2 {[%emt 0:00:58]} h4 {[%emt 0:00:01]} 54. Rc4 {[%emt 0:00:51]} Kf6 {[%emt 0:00:17]} 55. Ke3 {[%emt 0:00:34]} c5 {[%emt 0:01:02]} 56. Rc2 {[%emt 0:00:32]} Rd5 {[%emt 0:00:23]} 57. a4 {[%emt 0:00:30]} (57. dxc5 $11 Rd3+ 58. Kf2) 57... Ke7 {[%emt 0:01:31]} (57... a6 $15) 58. Rd2 {[%emt 0:01:03]} Kf6 {[%emt 0:00:26]} (58... a6 $5 {[%cal Rc5c4]}) 59. Rc2 {[%emt 0:00:21]} h3 {[%emt 0:00:32]} 60. Rd2 {[%emt 0:01:18]} cxd4+ {[%emt 0:00:43]} 61. Rdxd4 {[%emt 0:00:12]} Rc5 {[%emt 0:00:11]} 62. Rc4 {[%emt 0:00:01] Against Rc3+. Rxc5 is the strong threat.} Rd5 {[%emt 0:00:18] Strongly threatening ...Rd3+.} 63. Red4 {[%emt 0:00:16] Against Rd3+. Hoping for Rxd5.} Re5+ {[%emt 0:00:05]} 64. Re4 {[%emt 0:00:04]} Ra5 {[%emt 0:00:08]} 65. Rc8 {[%emt 0:03:08]} Rd5 {[%emt 0:00:18] White must now prevent ...Rd3+.} 66. Rf8+ {[%emt 0:00:21]} Ke7 {[%emt 0:00:38]} 67. Rh8 {[%emt 0:00:33]} (67. Rfxf4 $15 gxf4+ 68. Kxf4) 67... Rd3+ $19 {[%emt 0:00:08]} 68. Kf2 {[%emt 0:00:02]} Rd2+ {[%emt 0:00:01]} 69. Kg1 {[%emt 0:00:57]} Rd1+ {[%emt 0:00:06]} 70. Kf2 {[%emt 0:00:01]} Rd2+ {[%emt 0:00:01]} ({Black should play} 70... Rc1 $17 {Threatens to win with ...Rc2+.} 71. Rxf4 gxf4 72. Rxh3 a6 73. Rh7+ Kf6 74. Rh6+ Ke5) 71. Ke3 $2 {[%emt 0:00:14][%mdl 8192]} (71. Kg1 $11) 71... Rxh2 {[%emt 0:00:15]} 72. Rh7+ {[%emt 0:00:19]} Kf6 {[%emt 0:00:01]} 73. Kd4 $2 {[%emt 0:00:34]} (73. Rxf4+ gxf4+ 74. Kxf4) 73... Kg6 {[%emt 0:01:14] Black is clearly winning.} 74. Rh8 {[%emt 0:00:29]} Kg7 {[%emt 0:00:13]} 75. Ra8 {[%emt 0:00:05]} Rd2+ {[%emt 0:00:18]} 76. Kc4 {[%emt 0:00:02]} Rd1 {[%emt 0:01:09] And now ...h2 would win.} 77. Rxa7+ {[%emt 0:00:10]} Kg6 {[%emt 0:00:00] What a bad dream for White.  Weighted Error Value: White=0.26 (precise) /Black=0.34} 0-1

[Event "New York Spring GM-A 2022"]
[Site "New York"]
[Date "2022.04.16"]
[Round "3.5"]
[White "Nagy, Gabor"]
[Black "Liang, Jason"]
[Result "1/2-1/2"]
[ECO "E14"]
[WhiteElo "2530"]
[BlackElo "2419"]
[Annotator "TA"]
[PlyCount "90"]
[EventDate "2022.04.14"]
[EventType "tourn"]
[EventCountry "USA"]
[SourceTitle "playchess.com"]
[Source "ChessBase"]
[SourceQuality "1"]
[TimeControl "5400+30"]

{[%evp 14,90,0,0,13,0,0,0,0,0,0,0,0,6,9,-6,0,0,0,-18,82,84,87,76,122,-8,32,35,51,7,22,0,0,0,6,0,98,87,85,-71,-71,-73,-70,-68,-67,-58,-52,-61,-56,-45,-24,-43,-27,-291,-51,-57,-33,-38,0,0,0,0,0,0,0,0,0,0,0,0,0,0,0,0,0,0,0,0,0]} 1. c4 {[%emt 0:00:10]} e6 {[%emt 0:00:10]} 2. Nf3 {[%emt 0:00:11]} d5 {[%emt 0:00:07]} 3. e3 {[%emt 0:00:16]} Nf6 {[%emt 0:00:19]} 4. Nc3 {[%emt 0:00:11]} b6 {[%emt 0:02:34]} 5. d4 {[%emt 0:00:26]} Bb7 {[%emt 0:01:02]} 6. cxd5 {[%emt 0:00:12]} exd5 {[%emt 0:01:11]} 7. Bb5+ $1 {[%emt 0:00:22] 7.Bb5+ is better than 7.Bd3.} c6 {[%emt 0:09:30]} 8. Bd3 {[%emt 0:00:37]} Nbd7 {[%emt 0:00:52] E14: Queen's Indian: Classical Variation (4 e3).} 9. O-O {[%emt 0:00:25]} (9. Ne5 {is interesting.} Bb4 10. O-O O-O 11. Bd2) 9... Bd6 {[%emt 0:03:01]} 10. e4 {[%emt 0:00:19]} dxe4 {[%emt 0:00:23]} 11. Nxe4 {[%emt 0:00:12]} Nxe4 {[%emt 0:00:12]} 12. Bxe4 {[%emt 0:00:09]} O-O {[%emt 0:04:48]} 13. Bg5 {[%emt 0:01:02]} Nf6 {[%emt 0:02:46]} 14. Bc2 {[%emt 0:04:40]} h6 {[%emt 0:02:05]} 15. Bh4 {[%emt 0:01:06]} c5 {[%emt 0:04:54]} 16. Qd3 {[%emt 0:15:50]} g5 {[%emt 0:09:38] [#]} (16... c4 $1 $11 {remains equal.} 17. Qd2 (17. Qxc4 Rc8 $11) 17... b5) 17. Nxg5 $1 $16 {[%emt 0:01:21]} hxg5 {[%emt 0:01:23]} 18. Bxg5 {[%emt 0:00:08]} Re8 {[%emt 0:01:03]} (18... Be4 $142 19. Qxe4 Nxe4 20. Bxd8 Nd2) 19. Rae1 {[%emt 0:01:49]} (19. Qh3 $1 $16) 19... Rxe1 {[%emt 0:04:31]} (19... Bxh2+ $5 20. Kxh2 Ng4+ 21. Kg3 Qxg5 22. Qh7+ Kf8 23. Qh8+ Qg8 24. Qxg8+ Kxg8 25. Kxg4 cxd4 $11) 20. Rxe1 {[%emt 0:01:46] [#] Qh3 is the strong threat.} Bc7 $146 {[%emt 0:10:49][%cal Od8d5] White must now prevent ...Qd5!} ({Predecessor:} 20... cxd4 21. Qf5 Be7 22. Bb3 Kg7 23. Qh3 Kg8 24. Qf5 Kg7 25. Qh3 Kg8 26. Qh6 Bd5 27. Bxf6 Bxf6 28. Bxd5 Qxd5 29. Qxf6 Rc8 30. h3 d3 31. Re5 Rc1+ 32. Kh2 {1-0 (32) Gaprindashvili,V (2471)-Mchedlishvili,M (2550) Kocaeli 2002}) 21. f4 {[%emt 0:10:49]} (21. Bb3 $5 {[%cal Rd3g6]} Kg7 22. Qh3 $11) 21... Qd5 {[%emt 0:02:16][%csl Gb7][%cal Rd5g2]} 22. Qg3 {[%emt 0:02:01]} Nh5 {[%emt 0:02:26]} 23. Qg4 {[%emt 0:00:12] Active counter play!} Qxd4+ {[%emt 0:01:13]} 24. Kh1 {[%emt 0:00:26]} Ng7 {[%emt 0:01:35]} (24... Qd2 25. Bf6+ Kf8 26. Be7+ Ke8 27. Ba4+ b5 28. Bxb5+) (24... Qg7 $1 $11 25. Qxh5 Bxf4) 25. Qh3 {[%emt 0:00:44] White wants to mate with Qh7+.} f5 {[%emt 0:02:38]} (25... f6 $2 26. Qh7+ Kf8 27. Bh6 $18) 26. Bf6 $2 {[%emt 0:02:03] Dancing on a razor blade.} Qxf4 $17 {[%emt 0:01:10]} ({Don't play} 26... Qxf6 27. Bb3+ Qf7 28. Bxf7+ Kxf7 29. Qb3+ Kf8 30. Qc3 $16) 27. Bxg7 {[%emt 0:04:29][%mdl 64] Remove Defender} Kxg7 {[%emt 0:02:30]} 28. Qc3+ $1 {[%emt 0:00:19]} Qd4 $1 {[%emt 0:04:25]} 29. Re7+ {[%emt 0:00:06]} Kf6 $1 {[%emt 0:00:14]} 30. Qxd4+ {[%emt 0:01:25]} cxd4 {[%emt 0:00:07]} 31. Rxc7 $15 {[%emt 0:00:05][%mdl 4096] Endgame KRB-KRB} Be4 {[%emt 0:00:44] Hoping for ...Rg8.} 32. Bb3 {[%emt 0:00:15] Inhibits Rg8.} a5 {[%emt 0:04:00] aiming for ...a4.} 33. a4 $2 {[%emt 0:04:29][%mdl 8192] [#]} (33. Kg1 $1 $11) 33... d3 $2 {[%emt 0:01:14]} (33... b5 $1 $19 {[%cal Rb5a4] And now ...bxa4 would win.} 34. axb5 a4) 34. Kg1 $1 {[%emt 0:00:21]} Rd8 {[%emt 0:00:59]} (34... b5 $5 35. axb5 a4 $17) 35. Kf2 {[%emt 0:01:52]} d2 {[%emt 0:03:54]} 36. Bd1 {[%emt 0:00:14] The position is equal.} f4 {[%emt 0:01:30]} 37. g3 {[%emt 0:01:43]} fxg3+ {[%emt 0:02:07]} 38. hxg3 {[%emt 0:00:10]} Rd3 {[%emt 0:00:54]} 39. Rc3 {[%emt 0:01:00]} Rd6 {[%emt 0:02:00]} 40. Ke3 {[%emt 0:00:36]} Bf5 {[%emt 0:00:54]} 41. g4 {[%emt 0:00:49]} Bg6 {[%emt 0:00:56]} 42. Kf4 {[%emt 0:00:28]} Rd4+ {[%emt 0:00:07]} 43. Ke3 {[%emt 0:00:04]} Rd6 {[%emt 0:00:07]} 44. Kf4 {[%emt 0:00:06]} Rd4+ {[%emt 0:00:06]} 45. Ke3 {[%emt 0:00:04]} Rd6 {[%emt 0:00:19] Weighted Error Value: White=0.25 (precise) /Black=0.20 (precise)} 1/2-1/2